bitfinex/quotes_SOLUSD_20251106
["timestamp","ask_amount","ask_price","bid_price","bid_amount"]
[1762433089811,4.06891854,157.45,157.4,19.30195435]
[1762433090011,4.06891854,157.45,157.41,10.44882769]
[1762433090233,4.06891854,157.45,157.4,12.94891854]
[1762433090234,4.06891854,157.43,157.4,9.54]
[1762433090533,11.80891854,157.43,157.4,9.54]
[1762433090736,4.06891854,157.41,157.4,8.88]
[1762433091337,7.02248956,157.42,157.4,8.88]
[1762433091521,11.80891854,157.41,157.4,8.88]
[1762433091718,4.06891854,157.41,157.4,8.88]
[1762433092117,12.47891854,157.41,157.4,8.88]
[1762433093041,22.90067362,157.41,157.4,8.88]
[1762433093330,7.74,157.41,157.4,8.88]
[1762433093731,4.06891854,157.41,157.4,8.88]
[1762433094111,18.83175508,157.41,157.4,8.88]
[1762433094313,4.73891854,157.41,157.4,8.88]
[1762433094806,39.42375508,157.41,157.4,8.88]
[1762433095010,4.06891854,157.41,157.4,8.88]
[1762433095211,0.67,157.43,157.4,8.88]
[1762433095539,4.06891854,157.41,157.4,8.88]
[1762433096350,6.35168364,157.44,157.4,8.88]
[1762433096528,6.36229535,157.41,157.4,8.88]
[1762433097229,20.45513189,157.41,157.4,8.88]
[1762433097424,12.71513189,157.41,157.4,8.88]
[1762433097730,6.36229535,157.41,157.4,8.88]
[1762433098244,14.10229535,157.41,157.4,8.88]
[1762433098623,7.74,157.41,157.4,8.88]
[1762433098846,14.10229535,157.41,157.4,8.88]
[1762433099150,50.79390282,157.45,157.4,8.88]
[1762433099151,6.35070584,157.47,157.4,9.57]
[1762433099439,21.262,157.47,157.4,8.88]
[1762433099618,6.36229535,157.41,157.4,8.88]
[1762433099818,14.10229535,157.41,157.4,8.88]
[1762433100014,6.36229535,157.41,157.4,8.88]
[1762433100641,7.74,157.41,157.4,9.57]
[1762433100838,6.36229535,157.43,157.4,9.57]
[1762433101030,6.36229535,157.44,157.41,0.69]
[1762433101227,6.36229535,157.44,157.4,8.88]
[1762433101228,6.36229535,157.42,157.4,8.88]
[1762433101433,14.10229535,157.41,157.4,8.88]
[1762433101726,7.74,157.41,157.4,8.88]
[1762433102035,104.7,157.45,157.41,9.78882769]
[1762433102234,104.7,157.45,157.41,16.15112304]
[1762433102539,6.36229535,157.47,157.43,9.78882769]
[1762433102923,14.10229535,157.47,157.44,0.69]
[1762433103235,6.36229535,157.45,157.41,16.83158313]
[1762433103417,6.36229535,157.47,157.42,0.69]
[1762433103618,6.36229535,157.48,157.44,0.69]
[1762433104049,7.74,157.47,157.44,7.05229535]
[1762433104218,7.74,157.47,157.45,6.36229535]
[1762433104417,6.36229535,157.51,157.45,7.05229535]
[1762433104621,6.34731413,157.55,157.45,7.05229535]
[1762433104622,7.74,157.49,157.46,0.69]
[1762433104848,6.36229535,157.51,157.46,0.69]
[1762433105157,6.36229535,157.54,157.49,6.34960949]
[1762433105453,7.01642051,157.57,157.49,6.34960949]
[1762433105454,14.10229535,157.53,157.49,6.34960949]
[1762433105626,6.36229535,157.53,157.5,9.78882769]
[1762433105834,6.36229535,157.55,157.51,0.69]
[1762433106059,17.83,157.59,157.51,0.69]
[1762433106353,7.74,157.58,157.52,9.78882769]
[1762433106726,6.36229535,157.56,157.52,0.69]
[1762433106926,7.74,157.58,157.52,0.69]
[1762433106927,6.36229535,157.54,157.52,0.69]
[1762433107140,7.74,157.55,157.53,6.3479972]
[1762433107358,16.53275407,157.61,157.53,6.3479972]
[1762433107359,0.67,157.61,157.54,16.84112304]
[1762433107554,14.10229535,157.61,157.55,0.69]
[1762433107735,14.10229535,157.61,157.57,9.78882769]
[1762433108049,7.74,157.61,157.57,9.78882769]
[1762433108242,14.10229535,157.61,157.58,0.69]
[1762433108752,14.10229535,157.61,157.57,9.78882769]
[1762433108928,7.74,157.61,157.58,0.69]
[1762433109626,14.10229535,157.61,157.58,0.69]
[1762433109939,6.36229535,157.59,157.53,0.69]
[1762433110142,0.67,157.6,157.54,16.15112304]
[1762433110332,6.36229535,157.6,157.56,9.78882769]
[1762433110527,6.02764263,157.57,157.53,9.78882769]
[1762433110741,6.36229535,157.56,157.54,0.69]
[1762433110927,7.74,157.57,157.54,0.69]
[1762433110928,14.10229535,157.57,157.54,0.69]
[1762433111264,6.36229535,157.55,157.52,0.69]
[1762433111548,6.36229535,157.55,157.53,0.69]
[1762433111756,6.36229535,157.55,157.51,0.69]
[1762433112132,6.36229535,157.54,157.51,0.69]
[1762433112337,7.74,157.53,157.51,0.69]
[1762433112759,14.10229535,157.58,157.52,16.15112304]
[1762433112960,14.10229535,157.58,157.53,6.36229535]
[1762433113274,14.10229535,157.58,157.53,7.03795479]
[1762433113441,14.10229535,157.58,157.54,0.69]
[1762433113442,6.36229535,157.57,157.54,0.69]
[1762433113865,6.36229535,157.55,157.51,16.13756804]
[1762433114039,6.36229535,157.55,157.51,16.82756804]
[1762433114239,6.36229535,157.55,157.52,0.69]
[1762433114562,104.7,157.6,157.52,7.05229535]
[1762433114749,14.10229535,157.59,157.55,9.78882769]
[1762433115152,14.10229535,157.59,157.56,0.69]
[1762433115361,14.10229535,157.59,157.56,7.03666766]
[1762433115653,6.36229535,157.65,157.59,9.78882769]
[1762433115838,7.74,157.64,157.59,16.15112304]
[1762433116036,7.74,157.64,157.61,16.15112304]
[1762433116237,7.74,157.64,157.6,0.69]
[1762433116442,14.10229535,157.64,157.58,26.95429535]
[1762433116642,14.10229535,157.64,157.58,27.64429535]
[1762433116643,6.36229535,157.63,157.58,27.64429535]
[1762433116945,7.74,157.64,157.59,16.84112304]
[1762433117336,7.74,157.63,157.62,16.13320023]
[1762433117536,7.74,157.63,157.61,6.34471083]
[1762433118064,7.74,157.63,157.59,16.82417368]
[1762433118453,0.2,157.67,157.62,6.36229535]
[1762433118758,7.74,157.66,157.63,9.78882769]
[1762433118969,14.10229535,157.66,157.63,0.69]
[1762433119767,7.74,157.66,157.64,16.15112304]
[1762433120168,0.2,157.67,157.65,7.05229535]
[1762433120367,0.2,157.67,157.66,0.69]
[1762433120554,0.2,157.67,157.66,10.47882769]
[1762433121068,0.2,157.67,157.66,16.84112304]
[1762433121484,0.2,157.67,157.66,23.18388594]
[1762433121653,0.2,157.67,157.66,10.47882769]
[1762433122181,0.2,157.67,157.66,16.82159059]
[1762433122469,0.2,157.67,157.66,37.41359059]
[1762433122661,0.2,157.67,157.66,16.82159059]
[1762433122866,0.2,157.67,157.66,16.81159059]
[1762433123068,0.2,157.67,157.64,9.78882769]
[1762433123372,0.2,157.67,157.64,10.46882769]
[1762433123592,0.2,157.67,157.64,16.81237606]
[1762433123768,0.2,157.67,157.65,7.04229535]
[1762433124360,0.2,157.67,157.66,0.68]
[1762433124869,0.2,157.67,157.66,7.04229535]
[1762433125461,0.2,157.67,157.66,13.38505825]
[1762433125867,0.2,157.67,157.66,43.76588594]
[1762433126055,0.2,157.68,157.67,9.78882769]
[1762433126250,0.2,157.68,157.67,16.83112304]
[1762433127150,6.56229535,157.68,157.65,9.78882769]
[1762433127350,7.7,157.67,157.63,6.34397005]
[1762433127579,7.7,157.67,157.63,13.3862654]
[1762433127781,7.7,157.67,157.64,16.83112304]
[1762433128261,7.7,157.67,157.66,9.78882769]
[1762433128571,0.2,157.68,157.66,16.15112304]
[1762433128869,0.2,157.68,157.67,16.83112304]
[1762433129549,0.2,157.68,157.67,16.13118831]
[1762433130153,0.2,157.68,157.67,22.49348366]
[1762433130472,0.2,157.68,157.67,23.17348366]
[1762433131070,0.2,157.68,157.67,16.13118831]
[1762433131670,0.2,157.68,157.65,6.3430731]
[1762433131969,0.2,157.68,157.66,16.15112304]
[1762433132172,0.2,157.68,157.67,6.36229535]
[1762433132366,0.2,157.68,157.65,6.3430731]
[1762433132770,0.2,157.68,157.66,16.83112304]
[1762433133159,0.2,157.68,157.65,6.36229535]
[1762433133366,6.36229535,157.67,157.64,16.1323182]
[1762433133560,7.88,157.68,157.64,16.8123182]
[1762433133561,14.24229535,157.68,157.64,16.8123182]
[1762433133886,14.24229535,157.68,157.64,23.17461355]
[1762433134381,14.24229535,157.68,157.65,16.83112304]
[1762433134382,7.88,157.68,157.65,16.83112304]
[1762433134585,6.36229535,157.67,157.63,7.02385736]
[1762433134799,7.88,157.68,157.64,10.46882769]
[1762433135288,7.88,157.68,157.65,0.68]
[1762433135582,7.88,157.68,157.65,6.34305838]
[1762433135885,6.36229535,157.67,157.63,9.78882769]
[1762433136184,6.36229535,157.67,157.63,10.46882769]
[1762433136482,7.88,157.68,157.64,0.68]
[1762433136679,14.24229535,157.68,157.64,0.68]
[1762433137261,7.88,157.68,157.64,0.68]
[1762433137462,14.24229535,157.68,157.64,0.68]
[1762433137778,14.24229535,157.68,157.64,7.02321331]
[1762433137976,6.36229535,157.67,157.63,16.13266947]
[1762433138175,6.36229535,157.65,157.61,9.78882769]
[1762433138378,6.36229535,157.64,157.61,9.78882769]
[1762433138592,6.36229535,157.64,157.61,6.34477507]
[1762433139080,6.36229535,157.64,157.61,7.02477507]
[1762433139391,14.04229535,157.65,157.61,7.02477507]
[1762433139769,6.36229535,157.63,157.59,0.68]
[1762433140279,6.36229535,157.63,157.6,9.78882769]
[1762433140471,6.36229535,157.63,157.56,15.86692045]
[1762433140472,0.67,157.63,157.57,0.68]
[1762433140696,6.36229535,157.61,157.57,0.68]
[1762433140894,6.36229535,157.62,157.57,7.04229535]
[1762433141269,113.05,157.65,157.57,7.04229535]
[1762433141588,6.36229535,157.62,157.58,0.68]
[1762433141785,113.05,157.65,157.59,6.3455803]
[1762433142002,6.36229535,157.62,157.59,6.3455803]
[1762433142379,6.36229535,157.62,157.59,7.0255803]
[1762433143808,7.68,157.65,157.6,0.68]
[1762433143979,7.68,157.65,157.62,9.78882769]
[1762433144383,7.68,157.65,157.62,10.46882769]
[1762433144798,7.68,157.65,157.62,9.78882769]
[1762433145609,7.68,157.65,157.61,6.36229535]
[1762433145610,7.66,157.67,157.64,9.78882769]
[1762433145905,7.66,157.67,157.6,20.592]
[1762433145906,6.36229535,157.66,157.62,9.78882769]
[1762433146132,6.36229535,157.66,157.62,16.15112304]
[1762433146276,7.66,157.67,157.62,16.83112304]
[1762433146479,6.36229535,157.66,157.62,16.83112304]
[1762433147078,8.33,157.67,157.62,16.83112304]
[1762433147285,14.69229535,157.67,157.62,16.83112304]
[1762433147993,14.69229535,157.67,157.58,0.68]
[1762433147994,6.36229535,157.63,157.58,0.68]
[1762433148198,7.66,157.62,157.59,9.78882769]
[1762433148376,14.02229535,157.62,157.59,9.78882769]
[1762433148582,7.66,157.62,157.59,10.46882769]
[1762433148820,7.66,157.62,157.6,0.68]
[1762433149500,7.66,157.62,157.61,6.34477507]
[1762433150305,6.56229535,157.68,157.62,9.78882769]
[1762433150530,7.64,157.67,157.64,9.78882769]
[1762433150824,7.64,157.67,157.64,16.15112304]
[1762433151036,7.64,157.67,157.65,7.04229535]
[1762433151400,7.64,157.67,157.66,16.81159059]
[1762433151728,0.2,157.68,157.67,9.78882769]
[1762433153652,0.2,157.68,157.67,16.13118831]
[1762433153931,0.2,157.68,157.67,23.17348366]
[1762433154300,6.36229535,157.76,157.67,91.33318835]
[1762433154521,7.64,157.75,157.72,9.78882769]
[1762433155012,7.64,157.75,157.72,10.46882769]
[1762433155412,7.64,157.75,157.72,9.78882769]
[1762433155613,14.00229535,157.75,157.72,16.12894172]
[1762433156434,11.69943157,157.75,157.72,16.12894172]
[1762433156812,7.64,157.75,157.72,16.80894172]
[1762433157006,7.64,157.75,157.71,9.78882769]
[1762433157402,7.64,157.75,157.71,0.68]
[1762433157624,4.05943157,157.74,157.71,0.68]
[1762433157814,4.05943157,157.74,157.7,6.34115409]
[1762433158113,4.05943157,157.74,157.7,7.02115409]
[1762433158315,4.05943157,157.74,157.71,0.68]
[1762433158523,11.69943157,157.75,157.71,0.68]
[1762433158727,4.05943157,157.74,157.71,0.68]
[1762433158930,4.05943157,157.73,157.69,6.34147136]
[1762433159119,11.67943157,157.72,157.69,16.13029905]
[1762433159316,4.05943157,157.71,157.61,31.72321482]
[1762433159615,7.62,157.72,157.67,13.84825926]
[1762433159818,4.05943157,157.71,157.69,9.78882769]
[1762433160122,4.05943157,157.7,157.69,9.78882769]
[1762433160515,8.28,157.72,157.69,9.78882769]
[1762433160725,4.05943157,157.7,157.64,15.85881782]
[1762433160931,4.05943157,157.65,157.62,6.34437254]
[1762433161110,11.67943157,157.64,157.62,6.34437254]
[1762433161316,11.67943157,157.64,157.62,5.34437254]
[1762433161809,7.62,157.64,157.63,9.78882769]
[1762433162031,11.67943157,157.64,157.63,9.78882769]
[1762433162222,11.67943157,157.64,157.62,5.34437254]
[1762433162423,4.05943157,157.63,157.62,15.13320023]
[1762433162636,11.67943157,157.64,157.62,15.13320023]
[1762433162823,7.62,157.64,157.62,15.13320023]
[1762433163130,4.05943157,157.63,157.6,0.68]
[1762433163439,4.05943157,157.63,157.61,9.78882769]
[1762433163440,7.62,157.63,157.61,9.78882769]
[1762433163631,4.05943157,157.62,157.59,9.78882769]
[1762433163817,4.05943157,157.6,157.53,15.86996135]
[1762433164133,4.05943157,157.56,157.54,9.78882769]
[1762433164340,4.05943157,157.56,157.53,16.54996135]
[1762433164341,4.05943157,157.56,157.53,7.02792828]
[1762433164549,4.05943157,157.55,157.53,6.34792828]
[1762433164720,11.67943157,157.55,157.53,6.34792828]
[1762433164924,4.05943157,157.54,157.52,9.78882769]
[1762433165127,7.62,157.55,157.52,16.81711535]
[1762433165422,7.62,157.55,157.54,9.78882769]
[1762433165818,0.66,157.6,157.54,0.68]
[1762433166154,7.62,157.59,157.56,9.78882769]
[1762433166341,4.05943157,157.62,157.58,9.78882769]
[1762433166648,7.62,157.61,157.58,9.78882769]
[1762433166955,7.62,157.61,157.59,0.68]
[1762433167151,11.67943157,157.61,157.58,6.34598299]
[1762433167547,7.62,157.61,157.59,9.78882769]
[1762433167858,7.62,157.61,157.59,14.52825926]
[1762433168029,7.62,157.61,157.59,10.46882769]
[1762433168356,7.62,157.61,157.59,9.78882769]
[1762433168561,7.62,157.61,157.57,34.44025926]
[1762433168736,7.62,157.61,157.59,0.68]
[1762433168934,11.67943157,157.61,157.57,9.78882769]
[1762433169262,11.67943157,157.61,157.57,6.34638573]
[1762433169464,11.67943157,157.61,157.57,7.02638573]
[1762433169664,11.67943157,157.61,157.57,0.68]
[1762433170451,4.05943157,157.59,157.56,16.13554564]
[1762433170757,7.62,157.61,157.57,14.52825926]
[1762433170970,20.592,157.66,157.59,9.78882769]
[1762433171260,4.71943157,157.69,157.66,20.592]
[1762433171462,4.05943157,157.67,157.66,20.592]
[1762433171754,11.67943157,157.7,157.66,27.6147629]
[1762433172059,4.05943157,157.71,157.67,10.46882769]
[1762433172938,7.62,157.72,157.67,9.78882769]
[1762433173138,0.66,157.76,157.7,9.78882769]
[1762433173345,8.28,157.76,157.71,6.34075201]
[1762433173546,4.05943157,157.73,157.7,9.78882769]
[1762433173855,4.05943157,157.71,157.67,20.592]
[1762433174055,4.05943157,157.69,157.67,26.93434809]
[1762433174558,8.28,157.71,157.68,10.46882769]
[1762433174559,7.62,157.71,157.68,10.46882769]
[1762433174729,11.67943157,157.71,157.68,10.46882769]
[1762433175336,11.67943157,157.71,157.68,16.81053978]
[1762433175647,7.62,157.71,157.68,16.81053978]
[1762433175843,7.62,157.71,157.68,32.66543577]
[1762433176163,7.62,157.71,157.68,36.72486734]
[1762433176356,7.62,157.71,157.68,20.86997135]
[1762433176560,7.62,157.71,157.68,16.81053978]
[1762433176767,7.62,157.71,157.68,16.81072807]
[1762433177134,7.62,157.71,157.68,20.87015964]
[1762433177650,24.65143157,157.73,157.68,16.81072807]
[1762433177860,7.6,157.73,157.7,9.78882769]
[1762433178443,7.6,157.73,157.71,0.68]
[1762433178643,4.05943157,157.74,157.69,9.78882769]
[1762433178949,4.05943157,157.72,157.69,9.78882769]
[1762433179265,4.05943157,157.72,157.68,7.02190038]
[1762433179440,4.05943157,157.72,157.69,0.68]
[1762433179638,11.65943157,157.73,157.69,0.68]
[1762433180048,4.05943157,157.72,157.68,6.34190038]
[1762433180252,4.05943157,157.71,157.68,6.34190038]
[1762433180460,4.05943157,157.69,157.63,4.73943157]
[1762433180666,4.05943157,157.67,157.64,9.78882769]
[1762433180863,4.05943157,157.67,157.63,0.68]
[1762433181371,4.05943157,157.67,157.64,16.1323645]
[1762433181569,4.05943157,157.65,157.62,9.78882769]
[1762433181874,4.05943157,157.67,157.63,0.68]
[1762433182666,11.65943157,157.67,157.63,0.68]
[1762433183456,11.65943157,157.67,157.64,6.34356762]
[1762433183874,4.05943157,157.66,157.64,6.34356762]
[1762433184363,4.05943157,157.65,157.63,6.34388416]
[1762433184562,4.05943157,157.64,157.62,16.1330707]
[1762433184866,4.05943157,157.64,157.62,9.78882769]
[1762433185075,4.05943157,157.64,157.62,16.80307482]
[1762433185274,4.05943157,157.65,157.62,16.80307482]
[1762433186175,4.05943157,157.65,157.62,16.13307482]
[1762433186376,0.67,157.64,157.57,4.05943157]
[1762433186587,7.58,157.63,157.58,16.80481068]
[1762433186757,7.58,157.63,157.59,13.84825926]
[1762433186958,7.58,157.63,157.6,4.05943157]
[1762433187160,7.58,157.63,157.6,4.72943157]
[1762433187365,11.63943157,157.65,157.61,0.67]
[1762433188375,4.05943157,157.62,157.59,9.78882769]
[1762433188547,0.67,157.64,157.58,6.34597479]
[1762433188548,4.05943157,157.61,157.58,9.78882769]
[1762433188950,4.05943157,157.6,157.58,10.45882769]
[1762433189171,4.05943157,157.6,157.55,16.13601905]
[1762433189354,11.63943157,157.61,157.56,0.67]
[1762433189568,11.63943157,157.61,157.56,4.72943157]
[1762433189770,11.63943157,157.61,157.56,0.67]
[1762433190079,4.05943157,157.59,157.57,0.67]
[1762433190265,4.05943157,157.59,157.57,9.78882769]
[1762433190464,4.05943157,157.59,157.57,0.67]
[1762433190861,7.58,157.61,157.54,9.78882769]
[1762433191066,4.05943157,157.59,157.55,0.67]
[1762433191476,4.05943157,157.57,157.54,9.78882769]
[1762433191686,4.05943157,157.61,157.56,9.78882769]
[1762433191855,4.05943157,157.58,157.56,9.78882769]
[1762433192185,4.05943157,157.6,157.56,10.45882769]
[1762433192360,4.05943157,157.6,157.57,7.01626725]
[1762433192560,4.05943157,157.6,157.57,0.67]
[1762433192762,4.05943157,157.59,157.56,9.78882769]
[1762433192959,7.58,157.61,157.56,0.67]
[1762433193160,7.58,157.61,157.58,9.78882769]
[1762433193682,7.58,157.61,157.59,0.69]
[1762433194576,7.58,157.61,157.59,7.03546201]
[1762433195484,7.58,157.61,157.57,15.86512977]
[1762433195485,4.05943157,157.6,157.57,9.78882769]
[1762433195675,4.05943157,157.6,157.58,0.69]
[1762433195890,4.05943157,157.59,157.55,0.69]
[1762433196186,4.05943157,157.56,157.53,9.78882769]
[1762433196377,4.05943157,157.55,157.53,9.78882769]
[1762433196579,4.05943157,157.55,157.53,0.69]
[1762433196792,11.63943157,157.56,157.53,0.69]
[1762433196978,7.58,157.56,157.53,0.69]
[1762433197183,6.34568002,157.59,157.55,9.78882769]
[1762433197184,4.05943157,157.59,157.55,9.78882769]
[1762433197364,24.65143157,157.61,157.55,4.05943157]
[1762433197565,11.63943157,157.6,157.55,4.74943157]
[1762433197759,7.58,157.59,157.55,4.74943157]
[1762433198085,7.58,157.59,157.56,4.74943157]
[1762433198385,7.58,157.59,157.57,4.05943157]
[1762433198591,20.592,157.61,157.57,4.74943157]
[1762433198773,7.58,157.6,157.58,0.69]
[1762433198977,7.58,157.6,157.57,4.74943157]
[1762433199390,7.58,157.6,157.58,0.69]
[1762433199691,7.58,157.6,157.57,4.74943157]
[1762433199893,7.58,157.6,157.58,0.69]
[1762433200079,7.58,157.6,157.57,0.69]
[1762433200672,8.25,157.6,157.55,13.84825926]
[1762433200977,11.63943157,157.6,157.55,14.53825926]
[1762433201178,11.63943157,157.6,157.56,0.69]
[1762433201376,7.58,157.6,157.56,4.74943157]
[1762433201575,20.592,157.61,157.58,13.84825926]
[1762433201765,4.05943157,157.63,157.58,13.84825926]
[1762433201766,7.58,157.6,157.58,13.84825926]
[1762433202094,7.58,157.6,157.58,14.53825926]
[1762433202704,7.58,157.6,157.56,9.78882769]
[1762433202896,7.58,157.6,157.56,10.47882769]
[1762433203061,4.05943157,157.61,157.56,9.78882769]
[1762433203266,7.58,157.59,157.57,0.69]
[1762433203681,4.05943157,157.61,157.57,0.69]
[1762433203872,4.05943157,157.61,157.53,0.69]
[1762433203873,11.63943157,157.58,157.53,0.69]
[1762433204174,4.05943157,157.57,157.52,9.78882769]
[1762433204592,4.05943157,157.57,157.52,10.47882769]
[1762433204897,4.05943157,157.57,157.53,0.69]
[1762433205102,4.05943157,157.57,157.52,13.84825926]
[1762433205103,7.58,157.56,157.52,13.84825926]
[1762433205393,7.58,157.56,157.45,0.1]
[1762433205394,70.592,157.54,157.45,0.1]
[1762433205566,4.05943157,157.46,157.45,0.1]
[1762433205768,7.58,157.46,157.45,0.1]
[1762433206000,8.25,157.46,157.45,0.1]
[1762433206216,0.67,157.46,157.45,0.1]
[1762433206496,8.27,157.46,157.45,0.1]
[1762433206868,7.6,157.46,157.45,0.1]
[1762433207072,11.63943157,157.46,157.45,0.1]
[1762433207487,21.262,157.49,157.45,0.1]
[1762433207673,11.63943157,157.48,157.45,0.1]
[1762433208003,12.30943157,157.48,157.45,0.1]
[1762433208170,0.67,157.47,157.45,0.1]
[1762433208369,4.05943157,157.46,157.45,0.1]
[1762433208571,7.58,157.48,157.45,0.1]
[1762433208770,4.05943157,157.47,157.45,0.1]
[1762433209494,21.262,157.49,157.45,0.1]
[1762433209495,20.592,157.49,157.45,0.1]
[1762433209686,7.58,157.48,157.45,0.79]
[1762433209995,0.67,157.55,157.46,9.78882769]
[1762433210199,7.58,157.54,157.48,9.78882769]
[1762433210401,0.79324787,157.58,157.52,4.05943157]
[1762433210402,7.6,157.53,157.52,4.05943157]
[1762433210608,7.6,157.53,157.49,0.69]
[1762433210609,7.6,157.53,157.51,13.84825926]
[1762433210793,4.05943157,157.52,157.47,0.69]
[1762433211102,7.6,157.53,157.48,13.84825926]
[1762433211292,7.6,157.53,157.47,9.78882769]
[1762433211694,7.6,157.53,157.47,4.74943157]
[1762433211889,11.65943157,157.53,157.47,4.74943157]
[1762433212204,11.65943157,157.53,157.47,0.69]
[1762433212205,7.6,157.53,157.47,0.69]
[1762433212388,11.65943157,157.53,157.47,4.05943157]
[1762433212583,11.65943157,157.53,157.48,0.67]
[1762433212879,11.65943157,157.52,157.48,0.67]
[1762433213086,11.65943157,157.52,157.46,4.72943157]
[1762433213291,4.05943157,157.49,157.45,0.1]
[1762433213492,0.67,157.51,157.45,0.1]
[1762433213493,11.65943157,157.48,157.45,0.1]
[1762433213761,20.592,157.46,157.45,0.1]
[1762433214309,25.32143157,157.46,157.45,0.1]
[1762433214907,21.262,157.46,157.45,0.1]
[1762433215487,25.32143157,157.46,157.45,0.1]
[1762433215697,31.67225082,157.46,157.45,0.1]
[1762433215897,28.862,157.46,157.45,0.1]
[1762433216201,32.92143157,157.46,157.45,0.1]
[1762433216405,7.6,157.46,157.45,0.1]
[1762433216796,7.6,157.46,157.45,0.77]
[1762433217702,20.592,157.5,157.45,11.18065418]
[1762433218005,7.6,157.49,157.45,7.12122261]
[1762433218414,13.95649004,157.49,157.45,7.12122261]
[1762433219309,13.95649004,157.49,157.45,0.77]
[1762433219502,7.6,157.49,157.46,0.67]
[1762433220093,14.62649004,157.49,157.45,0.1]
[1762433220313,6.35649004,157.48,157.45,0.1]
[1762433220496,7.6,157.47,157.45,0.1]
[1762433220911,7.6,157.49,157.45,6.35649004]
[1762433221207,6.35649004,157.46,157.43,0.1]
[1762433221411,13.95649004,157.45,157.43,0.1]
[1762433221613,7.6,157.47,157.44,16.14531773]
[1762433221808,7.6,157.47,157.45,6.35649004]
[1762433222015,7.6,157.47,157.44,9.78882769]
[1762433222398,7.6,157.47,157.44,16.14531773]
[1762433222921,7.6,157.47,157.45,7.02106078]
[1762433223225,7.6,157.47,157.45,0.67]
[1762433223590,7.6,157.47,157.44,16.1403086]
[1762433223790,8.28,157.47,157.43,6.45198105]
[1762433223991,14.63649004,157.47,157.43,6.45198105]
[1762433224289,14.63649004,157.47,157.43,7.12198105]
[1762433224290,13.95649004,157.47,157.43,7.12198105]
[1762433224598,6.35649004,157.45,157.43,0.1]
[1762433224918,20.30811605,157.44,157.43,0.1]
[1762433225085,20.30811605,157.44,157.41,0.1]
[1762433225086,26.94849004,157.42,157.41,0.1]
[1762433225288,20.592,157.42,157.41,0.1]
[1762433225519,27.62849004,157.42,157.41,0.1]
[1762433226108,35.22849004,157.42,157.41,0.1]
[1762433226924,0.68,157.46,157.41,6.45275145]
[1762433227090,28.192,157.45,157.41,7.12275145]
[1762433227290,7.6,157.45,157.41,7.12275145]
[1762433227487,7.6,157.44,157.41,7.12275145]
[1762433227793,0.68,157.49,157.42,0.67]
[1762433228012,7.6,157.48,157.42,7.02649004]
[1762433228201,7.6,157.48,157.43,6.35649004]
[1762433228501,0.68,157.54,157.46,6.35649004]
[1762433228695,6.35649004,157.51,157.46,0.67]
[1762433228888,13.95649004,157.5,157.44,16.1404537]
[1762433229217,7.6,157.49,157.45,7.02649004]
[1762433229398,6.35649004,157.5,157.45,0.67]
[1762433229602,13.95649004,157.49,157.44,6.35162601]
[1762433229787,7.6,157.48,157.44,6.35162601]
[1762433229992,7.6,157.47,157.44,12.70811605]
[1762433230191,6.35649004,157.49,157.43,6.35649004]
[1762433230416,6.35649004,157.47,157.42,16.14531773]
[1762433230625,6.35649004,157.47,157.41,6.45649004]
[1762433230843,7.62,157.46,157.43,6.35649004]
[1762433230995,6.35649004,157.48,157.44,6.35162601]
[1762433231189,21.272,157.49,157.44,13.37811605]
[1762433231190,20.592,157.49,157.44,13.37811605]
[1762433231408,7.62,157.48,157.46,6.35649004]
[1762433231611,21.272,157.52,157.46,16.14531773]
[1762433231612,26.94849004,157.52,157.46,16.14531773]
[1762433231837,0.68,157.55,157.49,16.14531773]
[1762433232125,6.35649004,157.55,157.5,6.35649004]
[1762433232289,6.35649004,157.55,157.49,9.78882769]
[1762433232290,6.35649004,157.55,157.49,16.81531773]